Workbook

Sheet Explanatory notes
B14: Consultation on discounts, multipliers, and seasonal factors
B15: on the basis of Article 28 of Commission Regulation (EU) 2017/460 of 16 March 2017 establishing a network code on harmonised transmission tariff structures for gas
B19: Annex 1
B20: ='Seasonal factors'!B3:F3 -> Determination of seasonal factors for the tariff period 2027

Sheet Seasonal factors
B3: ="Determination of seasonal factors for the tariff period "&F20+2 -> Determination of seasonal factors for the tariff period 2027
B4: in line with Article 15 of Commission Regulation (EU) 2017/460
B5: of 16 March 2017 establishing a network code on harmonised transmission tariff structures for gas
B7: Calculation parameters
E8: Values
B9: Multipliers for quarterly standard capacity products | E9: 1.4
B10: Multipliers for monthly standard capacity products (max 1.5) | E10: 1.45
B11: Multipliers for daily standard capacity products (max 3) | E11: 2.75
B12: Multipliers for the within-day standard capacity products (max 3) | E12: 2.8
B13: Power E (0 <= E <= 2) | E13: 1.5
B17: Average hourly allocation for each month [kWh]
B19: Gas month | C19: Year
C20: 2022 | D20: 2023 | E20: 2024 | F20: 2025 | G20: 2026*
B21: January | C21: 1867603.306 | D21: 1525416.102 | E21: 1611124.727 | F21: 1600132.077 | G21: 1895325.668
B22: February | C22: 1649721.385 | D22: 1602272.022 | E22: 1317793.002 | F22: 1594143.996 | G22: 1483630.201
B23: March | C23: 2049975.096 | D23: 1573760.972 | E23: 1207010.673 | F23: 1287334.202 | G23: 1316281.571
B24: April | C24: 1736572.448 | D24: 1413478.397 | E24: 1107418.294 | F24: 955492.6633 | G24: 1141695.307
B25: May | C25: 986687.8306 | D25: 1376241.303 | E25: 902670.3481 | F25: 985914.1681 | G25: 942275.0394
B26: June | C26: 965414.5193 | D26: 1004398.869 | E26: 792023.6513 | F26: 890021.7417 | G26: 871698.9387
B27: July | C27: 1332662.375 | D27: 1006964.689 | E27: 831519.6816 | F27: 844387.6455 | G27: 766859.6419
B28: August | C28: 2008199.074 | D28: 770338.7513 | E28: 771513.1758 | F28: 787377.9058 | G28: 748735.9806
B29: September | C29: 1139534.521 | D29: 914577.972 | E29: 893688.8727 | F29: 977082.1013 | G29: 929219.2053
B30: October | C30: 1541847.83 | D30: 894175.8939 | E30: 878594.8161 | F30: 1386463.074 | G30: 1030758.22
B31: November | C31: 1851654.528 | D31: 1348157.911 | E31: 1358115.084 | F31: 1586300.451 | G31: 1371619.778
B32: December | C32: 1399680.49 | D32: 1436345.233 | E32: 1542055.005 | F32: 1616966.724 | G32: 1530177.502
B33: Average | C33: =AVERAGE(C21:C32) -> 1544129.45 | D33: =AVERAGE(D21:D32) -> 1238844.01 | E33: 1101127.278 | F33: 1209301.396 | G33: 1169023.088
B35: * part of data for 2024 determined on the basis of forecasted flows.
B38: The prescribed calculation procedure in line with Article 15 (paragraph from 2 to 5)
B39: Note: The procedure for calculating seasonal factors for monthly standard capacity products for firm capacity is based on the forecasted flows
B41: Article 15 (3) points a & b
B42: (a) “the average data on the forecasted flows or the forecasted contracted capacity, where the seasonal factors are calculated for some or all of the interconnection points” (b) the resulting values referred to in point (a) shall be summed up”
B44: Gas month | C44: ="Forecasted average hourly gas flow in "&(F20+1)&" [kWh]" -> Forecasted average hourly gas flow in 2026 [kWh]
B45: January | C45: 1895325.668
B46: February | C46: 1483630.201
B47: March | C47: 1316281.571
B48: April | C48: 1141695.307
B49: May | C49: 942275.0394
B50: June | C50: 871698.9387
B51: July | C51: 766859.6419
B52: August | C52: 748735.9806
B53: September | C53: 929219.2053
B54: October | C54: 1030758.22
B55: November | C55: 1371619.778
B56: December | C56: 1530177.502
B57: Sum | C57: =SUM(C45:C56) -> 14028277.05
B59: Article 15 (3) point c
B60: “the usage rate shall be calculated by dividing each of the resulting values referred to in point (a) by the resulting value referred to in point (b);
B63: Gas month | C63: The usage rate | D63: Correction of the usage rate In case the value is 0
B64: January | C64: =C45/$C$57 -> 0.1351075162 | D64: =IF(C45/$C$57=0,0.1,C45/$C$57) -> 0.1351075162
B65: February | C65: =C46/$C$57 -> 0.1057599729 | D65: =IF(C46/$C$57=0,0.1,C46/$C$57) -> 0.1057599729
B66: March | C66: 0.09383059417 | D66: 0.09383059417
B67: April | C67: 0.08138528365 | D67: 0.08138528365
B68: May | C68: 0.06716969132 | D68: 0.06716969132
B69: June | C69: 0.06213870281 | D69: 0.06213870281
B70: July | C70: 0.05466527636 | D70: 0.05466527636
B71: August | C71: 0.05337333857 | D71: 0.05337333857
B72: September | C72: 0.06623901153 | D72: 0.06623901153
B73: October | C73: 0.07347717869 | D73: 0.07347717869
B74: November | C74: 0.09777535563 | D74: 0.09777535563
B75: December | C75: 0.1090780782 | D75: 0.1090780782
B78: Article 15(3) point d
B79: “each of the resulting values referred to in point (c) shall be multiplied by 12. Where the resulting values are equal to 0, these values shall be adjusted to whichever of the following is the lower: 0,1 or the lowest of the resulting values other than 0”
B81: Gas month | C81: The usage rate x 12
B82: January | C82: =IF(C64=0,MIN($D$64:$D$75),C64)*12 -> 1.621290194
B83: February | C83: 1.269119675
B84: March | C84: 1.12596713
B85: April | C85: 0.9766234038
B86: May | C86: 0.8060362959
B87: June | C87: 0.7456644337
B88: July | C88: 0.6559833164
B89: August | C89: 0.6404800628
B90: September | C90: 0.7948681383
B91: October | C91: 0.8817261443
B92: November | C92: 1.173304268
B93: December | C93: 1.308936939
B95: Article 15(3) point e
B96: “the initial level of the respective seasonal factors shall be calculated by raising each of the resulting values referred to in point (d) to the same power which is no less than 0 and no more than 2”
B98: Gas month | C98: Seasonal factor
B99: January | C99: =POWER(C82,$E$13) -> 2.064387087
B100: February | C100: =POWER(C83,$E$13) -> 1.429729458
B101: March | C101: 1.194781718
B102: April | C102: 0.9651408357
B103: May | C103: 0.723655551
B104: June | C104: 0.6438951343
B105: July | C105: =POWER(C88,$E$13) -> 0.5312992357
B106: August | C106: 0.5125761834
B107: September | C107: 0.7086676914
B108: October | C108: 0.8279432648
B109: November | C109: 1.270913449
B110: December | C110: 1.497538808
B112: Article 15(3) point f
B113: “the arithmetic mean of the products of the resulting values referred to in point (e) and the multiplier for monthly standard capacity products shall be calculated”
B115: Gas month | C115: The initial level of a seasonal factor x multiplier
C116: Monthly | D116: Daily | E116: Within-day
B117: January | C117: =C99*$E$10 -> 2.993361277 | D117: =C99*$E$11 -> 5.67706449 | E117: =C99*$E$12 -> 5.780283844
B118: February | C118: =C100*$E$10 -> 2.073107713 | D118: =C100*$E$11 -> 3.931756008 | E118: =C100*$E$12 -> 4.003242481
B119: March | C119: 1.732433492 | D119: 3.285649726 | E119: 3.345388811
B120: April | C120: 1.399454212 | D120: 2.654137298 | E120: 2.70239434
B121: May | C121: 1.049300549 | D121: 1.990052765 | E121: 2.026235543
B122: June | C122: 0.9336479447 | D122: 1.770711619 | E122: 1.802906376
B123: July | C123: 0.7703838917 | D123: 1.461072898 | E123: 1.48763786
B124: August | C124: 0.743235466 | D124: 1.409584504 | E124: 1.435213314
B125: September | C125: 1.027568153 | D125: 1.948836151 | E125: 1.984269536
B126: October | C126: 1.200517734 | D126: 2.276843978 | E126: 2.318241141
B127: November | C127: 1.842824501 | D127: 3.495011984 | E127: 3.558557657
B128: December | C128: 2.171431272 | D128: 4.118231722 | E128: 4.193108662
B129: Average | C129: =AVERAGE(C117:C128) -> 1.494772184 | D129: =AVERAGE(D117:D128) -> 2.834912762 | E129: =AVERAGE(E117:E128) -> 2.88645663
B131: Article 15(3) point g
B132: “the resulting value referred to in point (f) shall be compared with the range referred to in Article 13(1), as follows:
B133: (i) if this value falls within this range then the level of seasonal factors shall be equal to with the respective resulting values referred to in point (e); (ii) if this value falls outside of this range then point (h) shall apply”
B135: Article 15(3) point h
B136: "the level of seasonal factors shall be calculated as the product of the respective resulting values referred to in point (e) and the correction factor calculated as follows:
B137: i) where the resulting value referred to in point (f) is more than 1.5, the correction factor shall be calculated as 1.5 divided by this value; ii) where the resulting value referred to in point (f) is less than 1, the correction factor shall be calculated as 1 divided by this value."
C139: Monthly | D139: Daily | E139: Within-day
B140: Correction factor | C140: =1.5/C129 -> 1.0034974 | D140: =3/D129 -> 1.058233622 | E140: =3/E129 -> 1.039336593
B142: Gas month | C142: Seasonal factor
C143: Monthly | D143: Daily | E143: Within-day
B144: January | C144: =IF($C$129>1.5,C99*$C$140,C99) -> 2.064387087 | D144: =IF($D$129>3,C99*$D$140,C99) -> 2.064387087 | E144: =IF($E$129>3,C99*$E$140,C99) -> 2.064387087
B145: February | C145: =IF($C$129>1.5,C100*$C$140,C100) -> 1.429729458 | D145: =IF($D$129>3,C100*$D$140,C100) -> 1.429729458 | E145: =IF($E$129>3,C100*$E$140,C100) -> 1.429729458
B146: March | C146: 1.194781718 | D146: 1.194781718 | E146: 1.194781718
B147: April | C147: 0.9651408357 | D147: 0.9651408357 | E147: 0.9651408357
B148: May | C148: 0.723655551 | D148: 0.723655551 | E148: 0.723655551
B149: June | C149: 0.6438951343 | D149: 0.6438951343 | E149: 0.6438951343
B150: July | C150: 0.5312992357 | D150: 0.5312992357 | E150: 0.5312992357
B151: August | C151: 0.5125761834 | D151: 0.5125761834 | E151: 0.5125761834
B152: September | C152: 0.7086676914 | D152: 0.7086676914 | E152: 0.7086676914
B153: October | C153: 0.8279432648 | D153: 0.8279432648 | E153: 0.8279432648
B154: November | C154: 1.270913449 | D154: 1.270913449 | E154: 1.270913449
B155: December | C155: 1.497538808 | D155: 1.497538808 | E155: 1.497538808
B157: Article 15(4)
B158: “For daily standard capacity products for firm capacity and within-day standard capacity products for firm capacity, the seasonal factors shall be calculated by carrying out the steps set out in paragraph 3(f) to (h), mutatis mutandis.”
B161: Article 15(5)
B162: “For quarterly standard capacity products for firm capacity, the seasonal factors shall be calculated in sequential steps as follows:
B163: (a) the initial level of the respective seasonal factors shall be calculated as either of the following: (i) equal to the arithmetic mean of the respective seasonal factors applicable for the three relevant months; (ii) (ii) no less than the lowest and no more than the highest level of the respective seasonal factors applicable for the three relevant months.”
B165: “(b) the steps set out in paragraph 3(f) to (h) shall be carried out, using the resulting values referred to in point (a), mutatis mutandis.”
C167: (i) Arithmetic mean | D167: (ii) Minimum <=seasonal factor <= maximum
B168: Gas quarter | C168: Seasonal factor(i) | D168: Seasonal factorminimum | E168: Seasonal factormaximum | F168: Sezonski faktor(ii)
B169: Q2 | C169: =AVERAGE($C$144:$C$146) -> 1.562966088 | D169: =MIN($C$144:$C$146) -> 1.194781718 | E169: =MAX($C$144:$C$146) -> 2.064387087 | F169: 1.269 | L169: ID | M169: ID1 | N169: Naziv
B170: Q3 | C170: =AVERAGE($C$147:$C$149) -> 0.7775638403 | D170: =MIN($C$147:$C$149) -> 0.6438951343 | E170: =MAX($C$147:$C$149) -> 0.9651408357 | F170: 0.785 | L170: 1 | M170: (i) | N170: Arithmetic mean
B171: Q4 | C171: =AVERAGE($C$150:$C$152) -> 0.5841810368 | D171: =MIN($C$150:$C$152) -> 0.5125761834 | E171: =MAX($C$150:$C$152) -> 0.7086676914 | F171: 0.67 | L171: 2 | M171: (ii) | N171: Minimum <=seasonal factor <= maximum
B172: Q1 | C172: =AVERAGE($C$153:$C$155) -> 1.198798507 | D172: =MIN($C$153:$C$155) -> 0.8279432648 | E172: =MAX($C$153:$C$155) -> 1.497538808 | F172: 1.23
L173: =MATCH(B177,Tabela1[ID1],0) -> 2
B175: Selected initial level of the respective seasonal factors is calculated as:
B177: (ii) | C177: =VLOOKUP(MATCH(B177,Tabela1[ID1],0),Tabela1[],3) -> Minimum <=seasonal factor <= maximum
B179: Article 15(6)
B180: “For all non-yearly standard capacity products for firm capacity, the values resulting from the calculation referred to in paragraphs 3 to 5 may be rounded up or down.”
D182: Seasonal factor
B183: Gas month | C183: =C44 -> Forecasted average hourly gas flow in 2026 [kWh] | D183: Quarterly | E183: Monthly | F183: Daily | G183: Within-day
B184: January | C184: =ROUND(C45,3) -> 1895325.668 | D184: =IF($L$173=1,ROUND($C$169,3),$F$169) -> 1.269 | E184: =ROUND(C144,3) -> 2.064 | F184: 2.064 | G184: 2.064
B185: February | C185: 1483630.201 | D185: =IF($L$173=1,ROUND($C$169,3),$F$169) -> 1.269 | E185: 1.43 | F185: 1.43 | G185: 1.43
B186: March | C186: 1316281.571 | D186: 1.269 | E186: 1.195 | F186: 1.195 | G186: 1.195
B187: April | C187: 1141695.307 | D187: =IF($L$173=1,ROUND($C$170,3),$F$170) -> 0.785 | E187: 0.965 | F187: 0.965 | G187: 0.965
B188: May | C188: 942275.039 | D188: =IF($L$173=1,ROUND($C$170,3),$F$170) -> 0.785 | E188: 0.724 | F188: 0.724 | G188: 0.724
B189: June | C189: 871698.939 | D189: 0.785 | E189: 0.644 | F189: 0.644 | G189: 0.644
B190: July | C190: 766859.642 | D190: =IF($L$173=1,ROUND($C$171,3),$F$171) -> 0.67 | E190: 0.531 | F190: 0.531 | G190: 0.531
B191: August | C191: 748735.981 | D191: =IF($L$173=1,ROUND($C$171,3),$F$171) -> 0.67 | E191: 0.513 | F191: 0.513 | G191: 0.513
B192: September | C192: 929219.205 | D192: 0.67 | E192: 0.709 | F192: 0.709 | G192: 0.709
B193: October | C193: 1030758.22 | D193: =IF($L$173=1,ROUND($C$172,3),$F$172) -> 1.23 | E193: 0.828 | F193: 0.828 | G193: 0.828
B194: November | C194: 1371619.778 | D194: =IF($L$173=1,ROUND($C$172,3),$F$172) -> 1.23 | E194: 1.271 | F194: 1.271 | G194: 1.271
B195: December | C195: 1530177.502 | D195: 1.23 | E195: 1.498 | F195: 1.498 | G195: 1.498
